Workbook

Sheet Kosten-batentabel (hidden)
A1: Rekenmodel kosten-batentabel Recupa | L1: https://edepot.wur.nl/248976
A2: Versie | B2: Concept
A3: Datum | B3: 2021-09-23
A4: Locatie opstelling | B4: PCH
A23: Uitgangspunten:
A24: - Verhoudingen pomp/drain/putten/overloop (hoe kunnen we dit goed verwerken?)
A25: - Actuele offertes?
A26: - Economische en technische levensduur?
A27: - Berekeningen op basis van 1ha trayveld
A28: - Grond in eigendom
A29: - 3 technieken zijn: ozon, trage zandfilter en ultrafiltratie (back-up techniek: waterstofperoxide)
A31: Kosten-batentabel
A32: Techniek: | B32: Trage zandfilter
A33: Oppervlak trayveld: | B33: 10000 | C33: m²
A34: Capaciteit
A35: Vuile drain opslag: | B35: 160 | C35: m³ | D35: Hoe kunnen we de capaciteitsnormen opnemen?
A36: Propere drain opslag: | B36: 600 | C36: m³ | D36: Kunnen we prijzen koppelen aan de capaciteit van deze onderdelen?
A37: Ontsmettingstechniek: | B37: 6 | C37: m³
A38: Voorput pomp: | B38: 60 | C38: m³
A39: Filtratie: | C39: Micromol
A41: Kosten aankoop techniek (en installatie?)
B42: Aanleg trayveld | C42: 10 | D42: €/m² | E42: =$B$33*C42 -> 100000 | F42: € | G42: Wat valt hieronder? Moeten we dit meenemen of maken ondernemers deze kosten sowieso los van de techniek voor recirculatie | H42: Deze regel niet opnemen
B43: Voorput | E43: 1845 | F43: €
B44: Pomp in voorput | E44: 7315 | F44: €
A45: Nee | B45: Regeling overloop voorput | E45: 0 | F45: € | G45: Optioneel?
B46: Zeefbocht | E46: 6525 | F46: €
B47: Vuile drain bassin | E47: 4934 | F47: €
B48: Trage zandfilter | E48: 40170 | F48: € | G48: (min. 3m³/u UF-unit)
A49: Nee | B49: Verwijdering GBM | E49: 0 | F49: € | G49: (prijs Hortimax-unit op basis van UV en H202) / Optioneel?
B50: Propere drain | E50: 0 | F50: €
B51: Bassin | E51: 11920 | F51: €
A52: Ja | B52: Beregeningspomp | E52: 7000 | F52: € | G52: Optioneel?
A53: Nee | B53: Installatie bijmenging gift | E53: 0 | F53: € | G53: Optioneel?
B54: Totaal aankoop techniek (en installatie?) | E54: =SUM(E42:E53) -> 179709 | F54: €
A56: Kosten onderhoud
B57: Onderhoudskosten | G57: Wat valt hier allemaal onder?
B58: Vervanging onderdelen (<technische levensduur)
B59: Kosten arbeid
B60: Totaal kosten onderhoud (jaarlijks)
A62: Kosten verbruik
B63: Verbruik …(doeken?) | G63: Wat valt hier allemaal onder?
B64: Monsterafname
B65: Totaal kosten verbruik (jaarlijks)
A67: Kosten arbeid
B68: Kwaliteitscontrole | G68: Wat valt hier allemaal onder?
B69: Bediening installatie
B70: Totaal kosten arbeid (jaarlijks)
A72: Besparingen
B73: Besparing oppompen grondwater (België) | G73: Wat valt hier allemaal onder? Is besparing concreet te maken?
B74: Besparing gebruik nutriënten
B75: Duurzaamheid (waarde aan te hechten)
B76: Totaal besparingen (jaarlijks)
B78: Eenmalige kosten aankoop | E78: =E54 -> 179709 | F78: €
B79: Jaarlijkse kosten | E79: =E60+E65+E70-E76 -> 0
B81: Plantdichtheid | E81: 38.5 | F81: pl/m²
B82: Afschrijvingstermijn | E82: 5 | F82: jaar
B83: Extra plantkosten | E83: =((E78/E82)+E79)/B33/E81 -> 0.09335532468 | F83: €

Sheet Kladblok (hidden)
R5: 0.5 | S5: 1 | T5: 2.5 | U5: 5
Q6: Vuile drain opslagm3 | R6: 50 | S6: 100 | T6: 250 | U6: 500
Q7: Propere drain opslag m3 | R7: 200 | S7: 400 | T7: 1000 | U7: 2000
Q8: Ontsmettingstechniek m3/uur | R8: 1.5 | S8: 3 | T8: 8.5 | U8: 15
Q9: Voorput pomp m3/uur | R9: 15 | S9: 30 | T9: 75 | U9: 150
Q10: Voorput opslag m3 | R10: 5 | S10: 10 | T10: 25 | U10: 50
R13: 0.63 | S13: 1.5 | U13: 4.6
S14: 1.2
R15: 4,4m | S15: 6,2m | U15: 13m

Sheet RECUPA Kostprijsberekening
B1: RECUPA:
B2: Kostprijsberekening* Voorfiltratie en Ontsmettingstechnieken op Aardbeitrayvelden
A5: Stap | B5: 1. Input
B6: Systeeminput en uitgangspunten
B7: Oppervlakte | C7: ha | D7: 2.5
B8: Plantdichtheid | C8: pl/m2 | D8: 50
B9: Voorput opslag** | C9: m³ | D9: 25 | E9: =IF($D$7<1,"Advies: Minimale opslag van 5m3 bij deze oppervlakte",IF($D$7<2.5,"Advies: Minimale opslag van 10m3 bij deze oppervlakte",IF($D$7<5,"Advies: Minimale opslag van 25m3 bij deze oppervlakte",IF($D$7=5,"Advies: Minimale opslag van 50m3 bij deze oppervlakte")))) -> Advies: Minimale opslag van 25m3 bij deze oppervlakte
B10: Vuile drain opslag** | C10: m³ | D10: 250 | E10: =IF($D$7<1,"Advies: Minimale opslag van 50m3 bij deze oppervlakte",IF($D$7<2.5,"Advies: Minimale opslag van 100m3 bij deze oppervlakte",IF($D$7<5,"Advies: Minimale opslag van 250m3 bij deze oppervlakte",IF($D$7=5,"Advies: Minimale opslag van 500m3 bij deze oppervlakte")))) -> Advies: Minimale opslag van 250m3 bij deze oppervlakte
B11: Propere drain opslag** | C11: m³ | D11: 1000 | E11: =IF($D$7<1,"Advies: Minimale opslag van 200m3 bij deze oppervlakte",IF($D$7<2.5,"Advies: Minimale opslag van 400m3 bij deze oppervlakte",IF($D$7<5,"Advies: Minimale opslag van 1000m3 bij deze oppervlakte",IF($D$7=5,"Advies: Minimale opslag van 2000m3 bij deze oppervlakte")))) -> Advies: Minimale opslag van 1000m3 bij deze oppervlakte
B12: Ontsmettingstechniek | C12: m³/u | D12: 8.5 | E12: =IF($D$7<1,"Advies: Minimale capaciteit van 1,5m3/uur bij deze oppervlakte",IF($D$7<2.5,"Advies: Minimale capaciteit van 3m3/uur bij deze oppervlakte",IF($D$7<5,"Advies: Minimale capaciteit van 8,5m3/uur bij deze oppervlakte",IF($D$7=5,"Advies: Minimale capaciteit van 15m3/uur bij deze oppervlakte")))) -> Advies: Minimale capaciteit van 8,5m3/uur bij deze oppervlakte
B13: Voorput pomp** | C13: m³/u | D13: 75 | E13: =IF($D$7<1,"Advies: Minimale capaciteit van 15m3/uur bij deze oppervlakte",IF($D$7<2.5,"Advies: Minimale capaciteit van 30m3/uur bij deze oppervlakte",IF($D$7<5,"Advies: Minimale capaciteit van 75m3/uur bij deze oppervlakte",IF($D$7=5,"Advies: Minimale capaciteit van 150m3/uur bij deze oppervlakte")))) -> Advies: Minimale capaciteit van 75m3/uur bij deze oppervlakte
B15: Finaciële input
B16: Afschijvingtermijn | C16: Jaren | D16: 10
B17: Leenrente | C17: % | D17: 3
A19: Eenmalige kosten | C19: € | D19: =SUM(D20:D23) -> 36700
B20: Voorput incl. coating | C20: € | D20: ='Samenvatting kosten'!H61 -> 4500
B21: Vuile drain opslag | C21: € | D21: ='Samenvatting kosten'!H62 -> 7700
B22: Propere drain opslag | C22: € | D22: ='Samenvatting kosten'!H63 -> 18200
B23: Voorput pomp | C23: € | D23: ='Samenvatting kosten'!H64 -> 6300
A24: Totaal kosten per jaar | C24: € | D24: =(D19/$D$16) -> 3670
A25: Extra plantkosten/jaar | B25: Extra plantkosten/jaar | C25: € | D25: =D24/($D$8*10000*D7) -> 0.002936
A27: Stap | B27: 2. Voorfiltratie | D27: Trommelfilter | E27: Trilzeef | F27: Zeefbocht | G27: Doekenfilter
A28: Eenmalige kosten | B28: Investering techniek incl. bijkomende investeringen | C28: € | D28: =SUM(D29:D29) -> 39158 | E28: =SUM(E29:E29) -> 7550 | F28: =SUM(F29:F29) -> 8500 | G28: =SUM(G29:G29) -> 5400
B29: Voorfiltratie | C29: € | D29: ='Samenvatting kosten'!H7 -> 39158 | E29: ='Samenvatting kosten'!H8 -> 7550 | F29: ='Samenvatting kosten'!H9 -> 8500 | G29: ='Samenvatting kosten'!H10 -> 5400
A30: Jaarlijkse kosten | B30: Saldo kosten per jaar | C30: €/jaar | D30: =SUM(D31:D34) -> 5090.54 | E30: =SUM(E31:E34) -> 981.5 | F30: =SUM(F31:F34) -> 1105 | G30: =SUM(G31:G34) -> 3202
B31: Gebruikskosten (doeken, etc.) | C31: €/jaar | D31: ='Samenvatting kosten'!H14 -> 0 | E31: ='Samenvatting kosten'!H15 -> 0 | F31: ='Samenvatting kosten'!H16 -> 0 | G31: ='Samenvatting kosten'!H17 -> 2500
B32: Overige kosten (onderhoud, elektra, etc.) | C32: €/jaar | D32: ='Samenvatting kosten'!H21 -> 0 | E32: ='Samenvatting kosten'!H22 -> 0 | F32: ='Samenvatting kosten'!H23 -> 0 | G32: ='Samenvatting kosten'!H24 -> 0
B33: Rente | C33: €/jaar | D33: =D28*$D$17/100 -> 1174.74 | E33: =E28*$D$17/100 -> 226.5 | F33: =F28*$D$17/100 -> 255 | G33: =G28*$D$17/100 -> 162
B34: Afschrijving | C34: €/jaar | D34: =D28/$D$16 -> 3915.8 | E34: =E28/$D$16 -> 755 | F34: =F28/$D$16 -> 850 | G34: =G28/$D$16 -> 540
A35: Totaal kosten per jaar | C35: € | D35: =(D28/$D$16)+D30 -> 9006.34 | E35: =(E28/$D$16)+E30 -> 1736.5 | F35: =(F28/$D$16)+F30 -> 1955 | G35: =(G28/$D$16)+G30 -> 3742
A36: Extra plantkosten/jaar | B36: Extra plantkosten/jaar | C36: € | D36: =D35/($D$8*10000*$D$7) -> 0.007205072 | E36: =E35/($D$8*10000*$D$7) -> 0.0013892 | F36: =F35/($D$8*10000*$D$7) -> 0.001564 | G36: =G35/($D$8*10000*$D$7) -> 0.0029936
A38: Stap | B38: 3. Ontsmetting | D38: Ozon | E38: Waterstofperoxide | F38: Trage zandfilter | G38: Ultrafiltratie
A39: Eenmalige kosten | B39: Investering techniek incl. bijkomende investeringen | C39: € | D39: =SUM(D40:D40) -> 90000 | E39: =SUM(E40:E40) -> 10625 | F39: =SUM(F40:F40) -> 50000 | G39: =SUM(G40:G40) -> 47000
B40: Ontsmettingstechniek | C40: € | D40: ='Samenvatting kosten'!H30 -> 90000 | E40: ='Samenvatting kosten'!H31 -> 10625 | F40: ='Samenvatting kosten'!H32 -> 50000 | G40: ='Samenvatting kosten'!H33 -> 47000
A41: Saldo kosten per jaar | C41: €/jaar | D41: =SUM(D42:D45) -> 11700 | E41: =SUM(E42:E45) -> 14115 | F41: =SUM(F42:F45) -> 7288.4 | G41: =SUM(G42:G45) -> 6843.639706
B42: Gebruikskosten (H2O2, zuur, etc.) | C42: €/jaar | D42: ='Samenvatting kosten'!H36 -> 0 | E42: ='Samenvatting kosten'!H37 -> 11733.75 | F42: ='Samenvatting kosten'!H38 -> 0 | G42: ='Samenvatting kosten'!H39 -> 520
B43: Overige kosten (onderhoud, elektra, etc.) | C43: €/jaar | D43: ='Samenvatting kosten'!H42 -> 0 | E43: ='Samenvatting kosten'!H43 -> 1000 | F43: ='Samenvatting kosten'!H44 -> 788.4 | G43: ='Samenvatting kosten'!H45 -> 213.6397059
B44: Rente | C44: €/jaar | D44: =D39*$D$17/100 -> 2700 | E44: =E39*$D$17/100 -> 318.75 | F44: =F39*$D$17/100 -> 1500 | G44: =G39*$D$17/100 -> 1410
B45: Afschrijving | C45: €/jaar | D45: =D39/$D$16 -> 9000 | E45: =E39/$D$16 -> 1062.5 | F45: =F39/$D$16 -> 5000 | G45: =G39/$D$16 -> 4700
A46: Totaal kosten per jaar | C46: € | D46: =(D39/$D$16)+D41 -> 20700 | E46: =(E39/$D$16)+E41 -> 15177.5 | F46: =(F39/$D$16)+F41 -> 12288.4 | G46: =(G39/$D$16)+G41 -> 11543.63971
A47: Extra plantkosten/jaar | B47: Extra plantkosten/jaar | C47: € | D47: =D46/($D$8*10000*$D$7) -> 0.01656 | E47: =E46/($D$8*10000*$D$7) -> 0.012142 | F47: =F46/($D$8*10000*$D$7) -> 0.00983072 | G47: =G46/($D$8*10000*$D$7) -> 0.009234911765
A48: *) Aan deze berekening kunnen geen rechten worden ontleend en is enkel indicatief. Voor een juiste berekening voor een specifiek bedrijf is altijd maatwerk vereist.
A49: **) Minimale vereiste capaciteiten zijn afhankelijk van de in jouw regio geldende regelgeving. Weten hoe het in jouw regio is? Neem dan contact op met het Waterschap of PCH.

Sheet Grafieken (hidden)
E5: Extra plantkosten/jaar
F6: 0,5 ha | G6: 1 ha | H6: 2,5 ha | I6: 5 ha
E7: Voorput/opslag/pomp | F7: 0.00578 | G7: 0.00424 | H7: 0.002936 | I7: 0.00268
E8: Trommelfilter | F8: 0.021758 | G8: 0.01362152 | H8: 0.007205072 | I8: 0.00713828
E9: Trilzeef | F9: 0.006946 | G9: 0.003473 | H9: 0.0013892 | I9: 0.0006946
E10: Zeefbocht | F10: 0.00506 | G10: 0.00322 | H10: 0.001564 | I10: 0.00092
E11: Doekenfilter | F11: 0.00683 | G11: 0.004415 | H11: 0.0029936 | I11: 0.0025106
E12: Ozon | F12: 0.05336 | G12: 0.03082 | H12: 0.01656 | I12: 0.0138
E13: Waterstofperoxide | F13: 0.02514 | G13: 0.0187836 | H13: 0.012142 | I13: 0.0138051
E14: Trage zandfilter | F14: 0.0229174 | G14: 0.016379 | H14: 0.00983072 | I14: 0.00772792
E15: Ultrafiltratie | F15: 0.0206956 | G15: 0.01210375 | H15: 0.009234911765 | I15: 0.00706545
F22: 0,5 ha | G22: 1 ha | H22: 2,5 ha | I22: 5 ha
E23: Trommelfilter | F23: 0.021758 | G23: 0.01362152 | H23: 0.007205072 | I23: 0.00713828
E24: Trilzeef | F24: 0.006946 | G24: 0.003473 | H24: 0.0013892 | I24: 0.0006946
E25: Zeefbocht | F25: 0.00506 | G25: 0.00322 | H25: 0.001564 | I25: 0.00092
E26: Doekenfilter | F26: 0.00683 | G26: 0.003415 | H26: 0.0029936 | I26: 0.0007106
F37: 0,5 ha | G37: 1 ha | H37: 2,5 ha | I37: 5 ha
E38: Ozon | F38: 0.05336 | G38: 0.03082 | H38: 0.01656 | I38: 0.0138
E39: Waterstofperoxide | F39: 0.02514 | G39: 0.0187836 | H39: 0.012142 | I39: 0.0138051
E40: Trage zandfilter | F40: 0.0229174 | G40: 0.016379 | H40: 0.00983072 | I40: 0.00772792
E41: Ultrafiltratie | F41: 0.0206956 | G41: 0.01210375 | H41: 0.009234911765 | I41: 0.00706545

Sheet Opbouw kosten (hidden)
T3: 1.5 | U3: 3 | W3: 15
C5: 2. Voorfiltratie | E5: Trommelfilter | F5: Trommelfilter | G5: Trommelfilter | H5: Trommelfilter | J5: Trilzeef | K5: Trilzeef | L5: Trilzeef | M5: Trilzeef | O5: Zeefbocht | P5: Zeefbocht | Q5: Zeefbocht | R5: Zeefbocht | T5: Doekenfilter | U5: Doekenfilter | V5: Doekenfilter | W5: Doekenfilter
C6: Hectare | D6: Kostenpost | E6: 0.5 | F6: 1 | G6: 2.5 | H6: 5 | I6: Kostenpost | J6: 0.5 | K6: 1 | L6: 2.5 | M6: 5 | N6: Kostenpost | O6: 0.5 | P6: 1 | Q6: 2.5 | R6: 5 | S6: Kostenpost | T6: 0.5 | U6: 1 | V6: 2.5 | W6: 5
C7: Investering (eenmalig) | D7: Trommelfilter | E7: 22000 | F7: 27500 | G7: 35000 | H7: 70000 | I7: Trilzeef 7-28m3/uur | J7: 7550 | K7: 7550 | L7: 7550 | M7: 7550 | N7: Zeefbocht (500 micron) | O7: 5500 | P7: 7000 | Q7: 8500 | R7: 10000 | S7: Doekfilter | T7: 5250 | U7: 5250 | V7: 5400 | W7: 5550 | X7: analoog aan onderstaande. Lijkt me raar dat een zeefbocht 10000 euro kost voor 5ha terwijl een doekenfilter maar de helft kost. Terwijl dit een duurder toestel lijkt -> meer electronica etc. ook voor trilzeef nog eens bekijken?
D8: Pomp | E8: =2500*66% -> 1650 | F8: =3200*66% -> 2112 | G8: =6300*66% -> 4158 | H8: =11500*66% -> 7590
C16: Totaal | E16: =SUM(E7:E15) -> 23650 | F16: =SUM(F7:F15) -> 29612 | G16: =SUM(G7:G15) -> 39158 | H16: =SUM(H7:H15) -> 77590 | J16: =SUM(J7:J15) -> 7550 | K16: 7550 | L16: 7550 | M16: 7550 | O16: =SUM(O7:O15) -> 5500 | P16: 7000 | Q16: 8500 | R16: 10000 | T16: =SUM(T7:T15) -> 5250 | U16: 5250 | V16: 5400 | W16: 5550
C18: Gebruikskosten per jaar | O18: 0 | P18: 0 | R18: 0 | S18: Doek | T18: 500 | U18: 1000 | V18: 2500 | W18: 5000 | X18: ik zou hier precies meer doek voorzien moet volgens mij evenredig met volume water omhoog gaan - hoeveel te meer water er door moet hoeveel te meer doek je verbruikt
X19: 500€ nemen als start voor 0.5 ha?en dan verder opbouwen?
C25: Totaal | E25: =SUM(E18:E24) -> 0 | F25: =SUM(F18:F24) -> 0 | G25: =SUM(G18:G24) -> 0 | H25: =SUM(H18:H24) -> 0 | J25: =SUM(J18:J24) -> 0 | K25: =SUM(K18:K24) -> 0 | L25: =SUM(L18:L24) -> 0 | M25: =SUM(M18:M24) -> 0 | O25: =SUM(O18:O24) -> 0 | P25: =SUM(P18:P24) -> 0 | Q25: =SUM(Q18:Q24) -> 0 | R25: =SUM(R18:R24) -> 0 | T25: =SUM(T18:T24) -> 500 | U25: =SUM(U18:U24) -> 1000 | V25: =SUM(V18:V24) -> 2500 | W25: =SUM(W18:W24) -> 5000
C27: Overige kosten per jaar | O27: 0 | P27: 0 | R27: 0
C34: Totaal | E34: =SUM(E27:E33) -> 0 | F34: =SUM(F27:F33) -> 0 | G34: =SUM(G27:G33) -> 0 | H34: =SUM(H27:H33) -> 0 | J34: =SUM(J27:J33) -> 0 | K34: =SUM(K27:K33) -> 0 | L34: =SUM(L27:L33) -> 0 | M34: =SUM(M27:M33) -> 0 | O34: =SUM(O27:O33) -> 0 | P34: =SUM(P27:P33) -> 0 | Q34: =SUM(Q27:Q33) -> 0 | R34: =SUM(R27:R33) -> 0 | T34: =SUM(T27:T33) -> 0 | U34: =SUM(U27:U33) -> 0 | V34: =SUM(V27:V33) -> 0 | W34: =SUM(W27:W33) -> 0
C38: 3. Ontsmetting | E38: Ozon | F38: Ozon | G38: Ozon | H38: Ozon | J38: Waterstofperoxide | K38: Waterstofperoxide | L38: Waterstofperoxide | M38: Waterstofperoxide | O38: Trage zandfilter | P38: Trage zandfilter | Q38: Trage zandfilter | R38: Trage zandfilter | T38: Ultrafiltratie | U38: Ultrafiltratie | V38: Ultrafiltratie | W38: Ultrafiltratie
C39: Hectare | D39: Kostenpost | E39: 0.5 | F39: 1 | G39: 2.5 | H39: 5 | I39: Kostenpost | J39: 0.5 | K39: 1 | L39: 2.5 | M39: 5 | N39: Kostenpost | O39: 0.5 | P39: 1 | Q39: 2.5 | R39: 5 | S39: Kostenpost | T39: 0.5 | U39: 1 | V39: 2.5 | W39: 5
C40: Investering (eenmalig) | D40: Ozon (Compleet) | E40: 58000 | F40: 67000 | G40: 90000 | H40: 150000 | I40: Aanschaf apparatuur | J40: 8500 | K40: 8500 | L40: =8500*1.25 -> 10625 | M40: =8500*1.75 -> 14875 | S40: NUF 2MCM (2 m3/h) unit: 450100002 Incl. pomp + frequentieregelaar en (semi-automatisch) voorfilter | T40: 17500
I41: (Bron OPEX) | S41: NUF 2MCM (3 m3/h) unit Incl. pomp + frequentieregelaar en (semi-automatisch) voorfilter: | U41: 20500
I42: (doseerpomp, doseervat, meet en regelpaneel) | S42: NUF 10MCM (10 m3/h) unit: 450100010 | V42: 47000
S43: NUF 15MCM (15 m3/h) unit: Incl. pomp + frequentieregelaar en (automatisch) voorfilter | W43: 61500
N45: TZF | O45: 22625 | P45: 32750 | Q45: 50000 | R45: 80000
C51: Totaal | E51: =SUM(E40:E50) -> 58000 | F51: =SUM(F40:F50) -> 67000 | G51: =SUM(G40:G50) -> 90000 | H51: =SUM(H40:H50) -> 150000 | J51: =SUM(J40:J50) -> 8500 | K51: =SUM(K40:K50) -> 8500 | L51: =SUM(L40:L50) -> 10625 | M51: =SUM(M40:M50) -> 14875 | O51: =SUM(O40:O50) -> 22625 | P51: =SUM(P40:P50) -> 32750 | Q51: =SUM(Q40:Q50) -> 50000 | R51: =SUM(R40:R50) -> 80000 | T51: =SUM(T40:T50) -> 17500 | U51: =SUM(U40:U50) -> 20500 | V51: =SUM(V40:V50) -> 47000 | W51: =SUM(W40:W50) -> 61500
C53: Gebruikskosten per jaar | N53: Gebruikerskosten | O53: 0 | P53: 0 | R53: 0 | S53: Natriumhypochloriet | T53: =(52/2.5)*15 -> 312 | U53: =(52/2.5)*15 -> 312 | V53: =(52/1.5)*15 -> 520 | W53: =52*15 -> 780
I56: Roam Technology | J56: 3330 | K56: 6436.8 | L56: =18625*0.63 -> 11733.75 | M56: 30091.5
C62: Totaal | E62: =SUM(E53:E61) -> 0 | F62: =SUM(F53:F61) -> 0 | G62: =SUM(G53:G61) -> 0 | H62: =SUM(H53:H61) -> 0 | J62: =SUM(J53:J61) -> 3330 | K62: 6436.8 | L62: 11733.75 | M62: =SUM(M53:M61) -> 30091.5 | O62: =SUM(O53:O61) -> 0 | P62: 0 | Q62: 0 | R62: =SUM(R53:R61) -> 0 | T62: =SUM(T53:T61) -> 312 | U62: =SUM(U53:U61) -> 312 | V62: =SUM(V53:V61) -> 520 | W62: =SUM(W53:W61) -> 780
C64: Overige kosten per jaar | D64: Compressor | H64: 0 | I64: Onderhoud | J64: 1000 | K64: 1000 | L64: 1000 | M64: 1000 | N64: Energiekosten | S64: Stroom draaiuren*kwh prijs
D65: Onderhoudskosten | H65: 0 | I65: (Bron OPEX) | N65: TZF 2.60 meter 0.40 kW/uur | O65: =0.4*24*365*Stroom!$D$24 -> 525.6 | S65: NUF 2 MCM (2 m3/h) 0,37 kw | T65: =0.37*Stroom!D7*Stroom!D24 -> 136.9
N66: TZF 4.00 meter 0.50 kW/uur | P66: =0.5*24*365*Stroom!$D$24 -> 657 | S66: NUF 2 MCM (3 m3/h) 0,55 kw | U66: =0.55*Stroom!E7*Stroom!D24 -> 204.875
N67: TZF 7.04 meter 0.70 kW/uur | R67: =0.7*24*365*Stroom!$D$24 -> 919.8 | S67: NUF 15 MCM (15 m3/h) 0,75 kw | W67: =0.75*Stroom!G7*Stroom!D24 -> 278.625
Q68: =0.6*24*365*Stroom!$D$24 -> 788.4 | S68: NUF 10MCM (10 m3/h) 0,65 kw | V68: =0.65*Stroom!F7*Stroom!D24 -> 213.6397059
S69: Onderhoudskosten (4%) | T69: =T40*0.04 -> 700 | U69: =U41*0.04 -> 820 | W69: =W43*0.04 -> 2460
C73: Totaal | E73: =SUM(E64:E72) -> 0 | F73: =SUM(F64:F72) -> 0 | G73: =SUM(G64:G72) -> 0 | H73: =SUM(H64:H72) -> 0 | J73: =SUM(J64:J72) -> 1000 | K73: =SUM(K64:K72) -> 1000 | L73: =SUM(L64:L72) -> 1000 | M73: =SUM(M64:M72) -> 1000 | O73: =SUM(O64:O72) -> 525.6 | P73: =SUM(P64:P72) -> 657 | Q73: =SUM(Q64:Q72) -> 788.4 | R73: =SUM(R64:R72) -> 919.8 | T73: =SUM(T64:T72) -> 836.9 | U73: =SUM(U64:U72) -> 1024.875 | V73: =SUM(V64:V72) -> 213.6397059 | W73: =SUM(W64:W72) -> 2738.625

Sheet Samenvatting kosten (hidden)
A1: opp | B1: 0.5 | C1: 1 | D1: 2.5 | E1: 5 | F1: te zoeken waarde
A2: index | B2: 1 | C2: 2 | D2: 3 | E2: 4 | F2: =HLOOKUP(H6,B1:E2,2,TRUE) -> 3
A3: opp | B3: =B1 -> 0.5 | C3: =C1 -> 1 | D3: =D1 -> 2.5 | E3: 5
A5: Voorfiltratie | F5: min | G5: max | H5: interpolatie
A6: Investering techniek incl. bijkomende investeringen | B6: 0.5 | C6: 1 | D6: 2.5 | E6: 5 | F6: =HLOOKUP(F2,B2:E3,2,FALSE) -> 2.5 | G6: =IF(H6=B6,B6,IF(H6=C6,C6,IF(H6=D6,D6,IF(H6=E6,E6,HLOOKUP(F2+1,B2:E3,2,TRUE))))) -> 2.5 | H6: ='RECUPA Kostprijsberekening'!D7 -> 2.5
A7: Trommelfilter | B7: ='Opbouw kosten'!E16 -> 23650 | C7: ='Opbouw kosten'!F16 -> 29612 | D7: ='Opbouw kosten'!G16 -> 39158 | E7: ='Opbouw kosten'!H16 -> 77590 | F7: =HLOOKUP(F$6,$B$6:$E$10,2,FALSE) -> 39158 | G7: =HLOOKUP(G$6,$B$6:$E$10,2,FALSE) -> 39158 | H7: =IF(AND($F$6=$H$6,$G$6=$H$6),$F7,_xlfn.FORECAST.LINEAR($H$6,$F7:$G7,$F$6:$G$6)) -> 39158 | I7: 29612
A8: Trilzeef | B8: ='Opbouw kosten'!J16 -> 7550 | C8: ='Opbouw kosten'!K16 -> 7550 | D8: ='Opbouw kosten'!L16 -> 7550 | E8: ='Opbouw kosten'!M16 -> 7550 | F8: =HLOOKUP(F$6,$B$6:$E$10,3,FALSE) -> 7550 | G8: =HLOOKUP(G$6,$B$6:$E$10,3,FALSE) -> 7550 | H8: =IF(AND($F$6=$H$6,$G$6=$H$6),$F8,_xlfn.FORECAST.LINEAR($H$6,$F8:$G8,$F$6:$G$6)) -> 7550
A9: Zeefbocht | B9: ='Opbouw kosten'!O16 -> 5500 | C9: ='Opbouw kosten'!P16 -> 7000 | D9: ='Opbouw kosten'!Q16 -> 8500 | E9: ='Opbouw kosten'!R16 -> 10000 | F9: =HLOOKUP(F$6,$B$6:$E$10,4,FALSE) -> 8500 | G9: =HLOOKUP(G$6,$B$6:$E$10,4,FALSE) -> 8500 | H9: =IF(AND($F$6=$H$6,$G$6=$H$6),$F9,_xlfn.FORECAST.LINEAR($H$6,$F9:$G9,$F$6:$G$6)) -> 8500
A10: Doekenfilter | B10: ='Opbouw kosten'!T16 -> 5250 | C10: ='Opbouw kosten'!U16 -> 5250 | D10: ='Opbouw kosten'!V16 -> 5400 | E10: ='Opbouw kosten'!W16 -> 5550 | F10: =HLOOKUP(F$6,$B$6:$E$10,5,FALSE) -> 5400 | G10: =HLOOKUP(G$6,$B$6:$E$10,5,FALSE) -> 5400 | H10: =IF(AND($F$6=$H$6,$G$6=$H$6),$F10,_xlfn.FORECAST.LINEAR($H$6,$F10:$G10,$F$6:$G$6)) -> 5400
A13: Gebruikskosten (doeken, etc.) | B13: 0.5 | C13: 1 | D13: 2.5 | E13: 5
A14: Trommelfilter | B14: ='Opbouw kosten'!E25 -> 0 | C14: ='Opbouw kosten'!F25 -> 0 | D14: ='Opbouw kosten'!G25 -> 0 | E14: ='Opbouw kosten'!H25 -> 0 | F14: =HLOOKUP(F$6,$B$13:$E$17,2,FALSE) -> 0 | G14: =HLOOKUP(G$6,$B$13:$E$17,2,FALSE) -> 0 | H14: =IF(AND($F$6=$H$6,$G$6=$H$6),$F14,_xlfn.FORECAST.LINEAR($H$6,$F14:$G14,$F$6:$G$6)) -> 0
A15: Trilzeef | B15: ='Opbouw kosten'!J25 -> 0 | C15: ='Opbouw kosten'!K25 -> 0 | D15: ='Opbouw kosten'!L25 -> 0 | E15: ='Opbouw kosten'!M25 -> 0 | F15: =HLOOKUP(F$6,$B$13:$E$17,3,FALSE) -> 0 | G15: =HLOOKUP(G$6,$B$13:$E$17,3,FALSE) -> 0 | H15: =IF(AND($F$6=$H$6,$G$6=$H$6),$F15,_xlfn.FORECAST.LINEAR($H$6,$F15:$G15,$F$6:$G$6)) -> 0
A16: Zeefbocht | B16: ='Opbouw kosten'!O25 -> 0 | C16: ='Opbouw kosten'!P25 -> 0 | D16: ='Opbouw kosten'!Q25 -> 0 | E16: ='Opbouw kosten'!R25 -> 0 | F16: =HLOOKUP(F$6,$B$13:$E$17,4,FALSE) -> 0 | G16: =HLOOKUP(G$6,$B$13:$E$17,4,FALSE) -> 0 | H16: =IF(AND($F$6=$H$6,$G$6=$H$6),$F16,_xlfn.FORECAST.LINEAR($H$6,$F16:$G16,$F$6:$G$6)) -> 0
A17: Doekenfilter | B17: ='Opbouw kosten'!T25 -> 500 | C17: ='Opbouw kosten'!U25 -> 1000 | D17: ='Opbouw kosten'!V25 -> 2500 | E17: ='Opbouw kosten'!W25 -> 5000 | F17: =HLOOKUP(F$6,$B$13:$E$17,5,FALSE) -> 2500 | G17: =HLOOKUP(G$6,$B$13:$E$17,5,FALSE) -> 2500 | H17: =IF(AND($F$6=$H$6,$G$6=$H$6),$F17,_xlfn.FORECAST.LINEAR($H$6,$F17:$G17,$F$6:$G$6)) -> 2500
A20: Overige kosten (onderhoud, elektra, etc.) | B20: 0.5 | C20: 1 | D20: 2.5 | E20: 5
A21: Trommelfilter | B21: ='Opbouw kosten'!E34 -> 0 | C21: ='Opbouw kosten'!F34 -> 0 | D21: ='Opbouw kosten'!G34 -> 0 | E21: ='Opbouw kosten'!H34 -> 0 | F21: =HLOOKUP(F$6,$B$20:$E$24,2,FALSE) -> 0 | G21: =HLOOKUP(G$6,$B$20:$E$24,2,FALSE) -> 0 | H21: =IF(AND($F$6=$H$6,$G$6=$H$6),$F21,_xlfn.FORECAST.LINEAR($H$6,$F21:$G21,$F$6:$G$6)) -> 0
A22: Trilzeef | B22: ='Opbouw kosten'!J34 -> 0 | C22: ='Opbouw kosten'!K34 -> 0 | D22: ='Opbouw kosten'!L34 -> 0 | E22: ='Opbouw kosten'!M34 -> 0 | F22: =HLOOKUP(F$6,$B$20:$E$24,3,FALSE) -> 0 | G22: =HLOOKUP(G$6,$B$20:$E$24,3,FALSE) -> 0 | H22: =IF(AND($F$6=$H$6,$G$6=$H$6),$F22,_xlfn.FORECAST.LINEAR($H$6,$F22:$G22,$F$6:$G$6)) -> 0
A23: Zeefbocht | B23: ='Opbouw kosten'!O34 -> 0 | C23: ='Opbouw kosten'!P34 -> 0 | D23: ='Opbouw kosten'!Q34 -> 0 | E23: ='Opbouw kosten'!R34 -> 0 | F23: =HLOOKUP(F$6,$B$20:$E$24,4,FALSE) -> 0 | G23: =HLOOKUP(G$6,$B$20:$E$24,4,FALSE) -> 0 | H23: =IF(AND($F$6=$H$6,$G$6=$H$6),$F23,_xlfn.FORECAST.LINEAR($H$6,$F23:$G23,$F$6:$G$6)) -> 0
A24: Doekenfilter | B24: ='Opbouw kosten'!T34 -> 0 | C24: ='Opbouw kosten'!U34 -> 0 | D24: ='Opbouw kosten'!V34 -> 0 | E24: ='Opbouw kosten'!W34 -> 0 | F24: =HLOOKUP(F$6,$B$20:$E$24,5,FALSE) -> 0 | G24: =HLOOKUP(G$6,$B$20:$E$24,5,FALSE) -> 0 | H24: =IF(AND($F$6=$H$6,$G$6=$H$6),$F24,_xlfn.FORECAST.LINEAR($H$6,$F24:$G24,$F$6:$G$6)) -> 0
A28: Ontsmetting
A29: Investering techniek incl. bijkomende investeringen | B29: 0.5 | C29: 1 | D29: 2.5 | E29: 5
A30: Ozon | B30: ='Opbouw kosten'!E51 -> 58000 | C30: ='Opbouw kosten'!F51 -> 67000 | D30: ='Opbouw kosten'!G51 -> 90000 | E30: ='Opbouw kosten'!H51 -> 150000 | F30: =HLOOKUP(F$6,$B$29:$E$33,2,FALSE) -> 90000 | G30: =HLOOKUP(G$6,$B$29:$E$33,2,FALSE) -> 90000 | H30: =IF(AND($F$6=$H$6,$G$6=$H$6),$F30,_xlfn.FORECAST.LINEAR($H$6,$F30:$G30,$F$6:$G$6)) -> 90000
A31: Waterstofperoxide | B31: ='Opbouw kosten'!J51 -> 8500 | C31: ='Opbouw kosten'!K51 -> 8500 | D31: ='Opbouw kosten'!L51 -> 10625 | E31: ='Opbouw kosten'!M51 -> 14875 | F31: =HLOOKUP(F$6,$B$29:$E$33,3,FALSE) -> 10625 | G31: =HLOOKUP(G$6,$B$29:$E$33,3,FALSE) -> 10625 | H31: =IF(AND($F$6=$H$6,$G$6=$H$6),$F31,_xlfn.FORECAST.LINEAR($H$6,$F31:$G31,$F$6:$G$6)) -> 10625
A32: Trage zandfilter | B32: ='Opbouw kosten'!O51 -> 22625 | C32: ='Opbouw kosten'!P51 -> 32750 | D32: ='Opbouw kosten'!Q51 -> 50000 | E32: ='Opbouw kosten'!R51 -> 80000 | F32: =HLOOKUP(F$6,$B$29:$E$33,4,FALSE) -> 50000 | G32: =HLOOKUP(G$6,$B$29:$E$33,4,FALSE) -> 50000 | H32: =IF(AND($F$6=$H$6,$G$6=$H$6),$F32,_xlfn.FORECAST.LINEAR($H$6,$F32:$G32,$F$6:$G$6)) -> 50000
A33: Ultrafiltratie | B33: ='Opbouw kosten'!T51 -> 17500 | C33: ='Opbouw kosten'!U51 -> 20500 | D33: ='Opbouw kosten'!V51 -> 47000 | E33: ='Opbouw kosten'!W51 -> 61500 | F33: =HLOOKUP(F$6,$B$29:$E$33,5,FALSE) -> 47000 | G33: =HLOOKUP(G$6,$B$29:$E$33,5,FALSE) -> 47000 | H33: =IF(AND($F$6=$H$6,$G$6=$H$6),$F33,_xlfn.FORECAST.LINEAR($H$6,$F33:$G33,$F$6:$G$6)) -> 47000
A35: Gebruikskosten (H2O2, zuur, etc.) | B35: 0.5 | C35: 1 | D35: 2.5 | E35: 5
A36: Ozon | B36: ='Opbouw kosten'!E62 -> 0 | C36: ='Opbouw kosten'!F62 -> 0 | D36: ='Opbouw kosten'!G62 -> 0 | E36: ='Opbouw kosten'!H62 -> 0 | F36: =HLOOKUP(F$6,$B$35:$E$39,2,FALSE) -> 0 | G36: =HLOOKUP(G$6,$B$35:$E$39,2,FALSE) -> 0 | H36: =IF(AND($F$6=$H$6,$G$6=$H$6),$F36,_xlfn.FORECAST.LINEAR($H$6,$F36:$G36,$F$6:$G$6)) -> 0
A37: Waterstofperoxide | B37: ='Opbouw kosten'!J62 -> 3330 | C37: ='Opbouw kosten'!K62 -> 6436.8 | D37: ='Opbouw kosten'!L62 -> 11733.75 | E37: ='Opbouw kosten'!M62 -> 30091.5 | F37: =HLOOKUP(F$6,$B$35:$E$39,3,FALSE) -> 11733.75 | G37: =HLOOKUP(G$6,$B$35:$E$39,3,FALSE) -> 11733.75 | H37: =IF(AND($F$6=$H$6,$G$6=$H$6),$F37,_xlfn.FORECAST.LINEAR($H$6,$F37:$G37,$F$6:$G$6)) -> 11733.75
A38: Trage zandfilter | B38: ='Opbouw kosten'!O62 -> 0 | C38: ='Opbouw kosten'!P62 -> 0 | D38: ='Opbouw kosten'!Q62 -> 0 | E38: ='Opbouw kosten'!R62 -> 0 | F38: =HLOOKUP(F$6,$B$35:$E$39,4,FALSE) -> 0 | G38: =HLOOKUP(G$6,$B$35:$E$39,4,FALSE) -> 0 | H38: =IF(AND($F$6=$H$6,$G$6=$H$6),$F38,_xlfn.FORECAST.LINEAR($H$6,$F38:$G38,$F$6:$G$6)) -> 0
A39: Ultrafiltratie | B39: ='Opbouw kosten'!T62 -> 312 | C39: ='Opbouw kosten'!U62 -> 312 | D39: ='Opbouw kosten'!V62 -> 520 | E39: ='Opbouw kosten'!W62 -> 780 | F39: =HLOOKUP(F$6,$B$35:$E$39,5,FALSE) -> 520 | G39: =HLOOKUP(G$6,$B$35:$E$39,5,FALSE) -> 520 | H39: =IF(AND($F$6=$H$6,$G$6=$H$6),$F39,_xlfn.FORECAST.LINEAR($H$6,$F39:$G39,$F$6:$G$6)) -> 520
A41: Overige kosten (onderhoud, elektra, etc.) | B41: 0.5 | C41: 1 | D41: 2.5 | E41: 5
A42: Ozon | B42: ='Opbouw kosten'!E73 -> 0 | C42: ='Opbouw kosten'!F73 -> 0 | D42: ='Opbouw kosten'!G73 -> 0 | E42: ='Opbouw kosten'!H73 -> 0 | F42: =HLOOKUP(F$6,$B$41:$E$45,2,FALSE) -> 0 | G42: =HLOOKUP(G$6,$B$41:$E$45,2,FALSE) -> 0 | H42: =IF(AND($F$6=$H$6,$G$6=$H$6),$F42,_xlfn.FORECAST.LINEAR($H$6,$F42:$G42,$F$6:$G$6)) -> 0
A43: Waterstofperoxide | B43: ='Opbouw kosten'!J73 -> 1000 | C43: ='Opbouw kosten'!K73 -> 1000 | D43: ='Opbouw kosten'!L73 -> 1000 | E43: ='Opbouw kosten'!M73 -> 1000 | F43: =HLOOKUP(F$6,$B$41:$E$45,3,FALSE) -> 1000 | G43: =HLOOKUP(G$6,$B$41:$E$45,3,FALSE) -> 1000 | H43: =IF(AND($F$6=$H$6,$G$6=$H$6),$F43,_xlfn.FORECAST.LINEAR($H$6,$F43:$G43,$F$6:$G$6)) -> 1000
A44: Trage zandfilter | B44: ='Opbouw kosten'!O73 -> 525.6 | C44: ='Opbouw kosten'!P73 -> 657 | D44: ='Opbouw kosten'!Q73 -> 788.4 | E44: ='Opbouw kosten'!R73 -> 919.8 | F44: =HLOOKUP(F$6,$B$41:$E$45,4,FALSE) -> 788.4 | G44: =HLOOKUP(G$6,$B$41:$E$45,4,FALSE) -> 788.4 | H44: =IF(AND($F$6=$H$6,$G$6=$H$6),$F44,_xlfn.FORECAST.LINEAR($H$6,$F44:$G44,$F$6:$G$6)) -> 788.4
A45: Ultrafiltratie | B45: ='Opbouw kosten'!T73 -> 836.9 | C45: ='Opbouw kosten'!U73 -> 1024.875 | D45: ='Opbouw kosten'!V73 -> 213.6397059 | E45: ='Opbouw kosten'!W73 -> 2738.625 | F45: =HLOOKUP(F$6,$B$41:$E$45,5,FALSE) -> 213.6397059 | G45: =HLOOKUP(G$6,$B$41:$E$45,5,FALSE) -> 213.6397059 | H45: =IF(AND($F$6=$H$6,$G$6=$H$6),$F45,_xlfn.FORECAST.LINEAR($H$6,$F45:$G45,$F$6:$G$6)) -> 213.6397059
B48: 1 | C48: 2 | D48: 3 | E48: 4 | F48: min | G48: max | H48: interpolatie | I48: te zoeken waarde
A49: Keuze Voorput | B49: 5 | C49: 10 | D49: 25 | E49: 50 | F49: =HLOOKUP($I49,$B$48:$E$52,2,FALSE) -> 25 | G49: =IF(H49=B49,B49,IF(H49=C49,C49,IF(H49=D49,D49,IF(H49=E49,E49,HLOOKUP(I49+1,$B$48:$E$52,2,TRUE))))) -> 25 | H49: ='RECUPA Kostprijsberekening'!D9 -> 25 | I49: =HLOOKUP(H49,B49:E53,5,TRUE) -> 3
A50: Keuze Vuile drain | B50: 50 | C50: 100 | D50: 250 | E50: 500 | F50: =HLOOKUP($I50,$B$48:$E$52,3,FALSE) -> 250 | G50: =IF(H50=B50,B50,IF(H50=C50,C50,IF(H50=D50,D50,IF(H50=E50,E50,HLOOKUP(I50+1,$B$48:$E$52,3,TRUE))))) -> 250 | H50: ='RECUPA Kostprijsberekening'!D10 -> 250 | I50: =HLOOKUP(H50,B50:E53,4,TRUE) -> 3
A51: Keuze Propere Drain | B51: 200 | C51: 400 | D51: 1000 | E51: 2000 | F51: =HLOOKUP($I51,$B$48:$E$52,4,FALSE) -> 1000 | G51: =IF(H51=B51,B51,IF(H51=C51,C51,IF(H51=D51,D51,IF(H51=E51,E51,HLOOKUP(I51+1,$B$48:$E$52,4,TRUE))))) -> 1000 | H51: ='RECUPA Kostprijsberekening'!D11 -> 1000 | I51: =HLOOKUP(H51,B51:E53,3,TRUE) -> 3
A52: Keuze Voorput Pomp | B52: 15 | C52: 30 | D52: 75 | E52: 150 | F52: =HLOOKUP($I52,$B$48:$E$52,5,FALSE) -> 75 | G52: =IF(H52=B52,B52,IF(H52=C52,C52,IF(H52=D52,D52,IF(H52=E52,E52,HLOOKUP(I52+1,$B$48:$E$52,5,TRUE))))) -> 75 | H52: ='RECUPA Kostprijsberekening'!D13 -> 75 | I52: =HLOOKUP(H52,B52:E53,2,TRUE) -> 3
B53: 1 | C53: 2 | D53: 3 | E53: 4
A55: Bassins | B55: 0.5 | C55: 1 | D55: 2.5 | E55: 5
A56: Voorput opslag m3 | B56: 5 | C56: 10 | D56: 25 | E56: 50 | F56: =F49 -> 25 | G56: =G49 -> 25 | H56: =IF(AND($F$49=$H$49,$G$49=$H$49),$F56,_xlfn.FORECAST.LINEAR($H$49,$F56:$G56,$F$49:$G$49)) -> 25
A57: Vuile drain opslag m3 | B57: 50 | C57: 100 | D57: 250 | E57: 500 | F57: =F50 -> 250 | G57: 250 | H57: =IF(AND($F$6=$H$6,$G$6=$H$6),$F57,_xlfn.FORECAST.LINEAR($H$6,$F57:$G57,$F$6:$G$6)) -> 250
A58: Propere drain opslag m3 | B58: 200 | C58: 400 | D58: 1000 | E58: 2000 | F58: =F51 -> 1000 | G58: 1000 | H58: =IF(AND($F$6=$H$6,$G$6=$H$6),$F58,_xlfn.FORECAST.LINEAR($H$6,$F58:$G58,$F$6:$G$6)) -> 1000
A59: Voorput pomp m3/uur | B59: 15 | C59: 30 | D59: 75 | E59: 150 | F59: =F52 -> 75 | G59: 75 | H59: =IF(AND($F$6=$H$6,$G$6=$H$6),$F59,_xlfn.FORECAST.LINEAR($H$6,$F59:$G59,$F$6:$G$6)) -> 75
A60: Kosten | B60: 0.5 | C60: 1 | D60: 2.5 | E60: 5
A61: Voorput incl. coating | B61: =750+700 -> 1450 | C61: =1200+1100 -> 2300 | D61: =2300+2200 -> 4500 | E61: =5100+3700 -> 8800 | F61: =HLOOKUP(F56,$B56:$E64,6,FALSE) -> 4500 | G61: =HLOOKUP(G56,$B56:$E64,6,FALSE) -> 4500 | H61: =IF(AND($F49=$H49,$G49=$H49),$F61,_xlfn.FORECAST.LINEAR($H49,$F61:$G61,$F49:$G49)) -> 4500
A62: Vuile drain opslag | B62: 3800 | C62: 5200 | D62: 7700 | E62: 12200 | F62: =HLOOKUP(F57,$B57:$E65,6,FALSE) -> 7700 | G62: 7700 | H62: =IF(AND($F50=$H50,$G50=$H50),$F62,_xlfn.FORECAST.LINEAR($H50,$F62:$G62,$F50:$G50)) -> 7700
A63: Propere drain opslag | B63: 6700 | C63: 10500 | D63: 18200 | E63: 34500 | F63: 18200 | G63: 18200 | H63: =IF(AND($F51=$H51,$G51=$H51),$F63,_xlfn.FORECAST.LINEAR($H51,$F63:$G63,$F51:$G51)) -> 18200
A64: Voorput pomp | B64: 2500 | C64: 3200 | D64: 6300 | E64: 11500 | F64: 6300 | G64: 6300 | H64: 6300

Sheet Stroom (hidden)
C4: Ha | D4: 0.5 | E4: 1 | F4: 2.5 | G4: 5
C5: Hoeveel m3 te ontsmetten? | D5: 3700 | E5: 7450 | F5: =E5*2.5 -> 18625 | G5: 37150
C6: Capaciteit/uur | D6: 1.5 | E6: 3 | F6: 8.5 | G6: 15
C7: Uur nodig | D7: =D5/D6 -> 2466.666667 | E7: =E5/E6 -> 2483.333333 | F7: =F5/F6 -> 2191.176471 | G7: =G5/G6 -> 2476.666667
C9: Dompelpomp
C10: Capaciteit/uur | D10: 15 | E10: 30 | G10: 150
C11: Hoeveel m3 te ontsmetten?
C12: Uur nodig
C13: kw | D13: 1.1 | E13: 2.2 | G13: =2*5.5 -> 11
C15: Doekenfilter
C16: Capaciteit/uur | D16: 7 | E16: 7 | G16: 14
C17: Uur nodig | D17: =D5/D16 -> 528.5714286 | E17: =E5/E16 -> 1064.285714 | G17: =G5/G16 -> 2653.571429
C18: kw/h | D18: =20/1000 -> 0.02 | E18: =20/1000 -> 0.02 | G18: =20/1000 -> 0.02
C19: Kosten | D19: =D17*D18*$D$24 -> 1.585714286 | E19: =E17*E18*$D$24 -> 3.192857143 | G19: =G17*G18*$D$24 -> 7.960714286
C24: Prijs per Kwh (KWIN) | D24: 0.15

Sheet Gegevens (hidden)
C1: Ha | D1: Vuile drain opslag | E1: Schone drain opslag | F1: Ontsmettingstechnieck | G1: Voorput pomp
C2: 0.5 | D2: 100 | E2: 200 | F2: 4 | G2: 30
C3: 1 | D3: 200 | E3: 400 | F3: 5 | G3: 40
C4: 2.5
C5: 5 | D5: 300 | E5: 600 | F5: 6 | G5: 50

Sheet Factsheet (hidden)
A1: Factsheet recirculatietechnieken RECUPA
A2: Versie | B2: Concept
A3: Datum | B3: 2021-09-23
B5: Techniek
A6: Onderdeel | B6: Ozon | C6: Trage zandfilter | D6: Ultrafiltratie | E6: … | F6: …
A7: Filtratie (micromol) | B7: ++ | C7: + | D7: ++
A8: Investeringskosten | B8: + | C8: - | D8: +
A9: Onderhoudskosten | B9: - | C9: + | D9: -
A10: Gebruik/capaciteit (m³/uur) | B10: + | C10: + | D10: +
A11: Praktische toepasbaarheid | B11: -- | C11: - | D11: --
A12: Levensduur | B12: + | C12: - | D12: +
A13: Gebruiksvriendelijk | B13: + | C13: ++ | D13: +
A16: Is dit iets als opzet? Wat moet er in het factsheet aan de orde komen?
A17: Let op: tekens zijn lukraak ingevuld, niet gebaseerd op de technieken.
